[Event "January 9 Early 2024"]
[Site "https://www.chess.com"]
[Date "2024.01.11"]
[Round "5"]
[White "Pakleza, Zbigniew"]
[Black "Duda, Jan-Krzysztof"]
[Result "0-1"]
[Board "211"]
[TimeControl "180+1"]
[WhiteFideId "1119290"]
[BlackFideId "1170546"]
[WhiteElo "2869"]
[BlackElo "3053"]
[WhiteTeam "POL"]
[BlackTeam "POL"]
[WhiteClock "0:00:02"]
[BlackClock "0:00:12"]

1. d4 {[%clk 0:03:00]}  c5 {[%clk 0:02:59]} 2. c3 {[%clk 0:03:00]}  Nf6 {[%clk 0:02:51]} 3. Nf3 {[%clk 0:03:01]}  g6 {[%clk 0:02:46]} 4. Bf4 {[%clk 0:03:01]}  Bg7 {[%clk 0:02:45]} 5. e3 {[%clk 0:03:01]}  O-O {[%clk 0:02:45]} 6. Be2 {[%clk 0:03:02]}  b6 {[%clk 0:02:38]} 7. O-O {[%clk 0:03:02]}  Bb7 {[%clk 0:02:38]} 8. h3 {[%clk 0:03:02]}  d6 {[%clk 0:02:38]} 9. a4 {[%clk 0:03:02]}  a6 {[%clk 0:02:37]} 10. Nbd2 {[%clk 0:03:02]}  Nbd7 {[%clk 0:02:36]} 11. Bh2 {[%clk 0:03:02]}  Ne4 {[%clk 0:02:31]} 12. Nxe4 {[%clk 0:03:02]}  Bxe4 {[%clk 0:02:32]} 13. Nd2 {[%clk 0:03:03]}  Bc6 {[%clk 0:02:30]} 14. Bf3 {[%clk 0:03:04]}  Qc8 {[%clk 0:02:30]} 15. Bxc6 {[%clk 0:03:02]}  Qxc6 {[%clk 0:02:31]} 16. Qf3 {[%clk 0:03:02]}  Qxf3 {[%clk 0:02:27]} 17. Nxf3 {[%clk 0:03:03]}  f5 {[%clk 0:02:27]} 18. Rfd1 {[%clk 0:02:49]}  Rfb8 {[%clk 0:02:16]} 19. Kf1 {[%clk 0:02:47]}  b5 {[%clk 0:02:16]} 20. axb5 {[%clk 0:02:44]}  Rxb5 {[%clk 0:02:12]} 21. Ra2 {[%clk 0:02:27]}  a5 {[%clk 0:02:12]} 22. Nd2 {[%clk 0:02:14]}  Rc8 {[%clk 0:01:58]} 23. Ke2 {[%clk 0:01:59]}  Nb6 {[%clk 0:01:52]} 24. Kd3 {[%clk 0:01:38]}  a4 {[%clk 0:01:44]} 25. f3 {[%clk 0:01:33]}  cxd4 {[%clk 0:01:31]} 26. exd4 {[%clk 0:01:32]}  Bh6 {[%clk 0:01:30]} 27. Bg1 {[%clk 0:01:00]}  Bxd2 {[%clk 0:01:29]} 28. Rxd2 {[%clk 0:01:01]}  f4 {[%clk 0:01:07]} 29. Re2 {[%clk 0:00:53]}  Kf7 {[%clk 0:01:06]} 30. Bf2 {[%clk 0:00:50]}  g5 {[%clk 0:01:02]} 31. Be1 {[%clk 0:00:45]}  Nc4 {[%clk 0:00:59]} 32. g3 {[%clk 0:00:37]}  e5 {[%clk 0:00:54]} 33. gxf4 {[%clk 0:00:30]}  exf4 {[%clk 0:00:46]} 34. h4 {[%clk 0:00:25]}  h6 {[%clk 0:00:44]} 35. Bf2 {[%clk 0:00:20]}  d5 {[%clk 0:00:42]} 36. Kc2 {[%clk 0:00:07]}  Kf6 {[%clk 0:00:33]} 37. Kc1 {[%clk 0:00:06]}  Ra5 {[%clk 0:00:20]} 38. Kc2 {[%clk 0:00:01]}  Rb8 {[%clk 0:00:19]} 39. Re1 {[%clk 0:00:01]}  Rab5 {[%clk 0:00:18]} 40. Rb1 {[%clk 0:00:01]}  Rb3 {[%clk 0:00:17]} 41. hxg5+ {[%clk 0:00:01]}  hxg5 {[%clk 0:00:17]} 42. Kd3 {[%clk 0:00:01]}  Nxb2+ {[%clk 0:00:15]} 43. Ke2 {[%clk 0:00:01]}  Nc4 {[%clk 0:00:16]} 44. Rba1 {[%clk 0:00:01]}  a3 {[%clk 0:00:16]} 45. Kf1 {[%clk 0:00:02]}  Rxc3 {[%clk 0:00:15]} 46. Kg2 {[%clk 0:00:03]}  Rbb3 {[%clk 0:00:16]} 47. Rh1 {[%clk 0:00:03]}  Rxf3 {[%clk 0:00:16]} 48. Re2 {[%clk 0:00:02]}  Kf5 {[%clk 0:00:16]} 49. Re8 {[%clk 0:00:02]}  Kg4 {[%clk 0:00:13]} 50. Reh8 {[%clk 0:00:02]}  Rb2 {[%clk 0:00:12]} 0-1

[Event "January 9 Early 2024"]
[Site "https://www.chess.com"]
[Date "2024.01.11"]
[Round "5"]
[White "Aradhya, Garg"]
[Black "Benedetti, Julio"]
[Result "1-0"]
[Board "213"]
[TimeControl "180+1"]
[WhiteFideId "25006746"]
[BlackFideId "172545"]
[WhiteElo "2718"]
[BlackElo "2503"]
[WhiteTeam "IND"]
[BlackTeam "ARG"]
[WhiteClock "0:00:18"]
[BlackClock "0:00:03"]

1. d4 {[%clk 0:03:00]}  Nf6 {[%clk 0:02:49]} 2. Nf3 {[%clk 0:03:00]}  g6 {[%clk 0:02:49]} 3. g3 {[%clk 0:03:00]}  Bg7 {[%clk 0:02:50]} 4. Bg2 {[%clk 0:03:01]}  O-O {[%clk 0:02:51]} 5. O-O {[%clk 0:03:01]}  d6 {[%clk 0:02:51]} 6. c4 {[%clk 0:03:01]}  c6 {[%clk 0:02:51]} 7. Nc3 {[%clk 0:03:00]}  Qb6 {[%clk 0:02:51]} 8. c5 {[%clk 0:02:48]}  dxc5 {[%clk 0:02:43]} 9. Na4 {[%clk 0:02:48]}  Qd8 {[%clk 0:02:25]} 10. Nxc5 {[%clk 0:02:46]}  Nbd7 {[%clk 0:02:25]} 11. Qb3 {[%clk 0:02:27]}  Nxc5 {[%clk 0:02:24]} 12. dxc5 {[%clk 0:02:28]}  Qd5 {[%clk 0:02:12]} 13. Be3 {[%clk 0:02:24]}  Qxb3 {[%clk 0:01:58]} 14. axb3 {[%clk 0:02:23]}  Be6 {[%clk 0:01:57]} 15. Ra3 {[%clk 0:02:02]}  Rfd8 {[%clk 0:01:51]} 16. Nd4 {[%clk 0:01:55]}  Bd5 {[%clk 0:01:50]} 17. f3 {[%clk 0:01:54]}  e5 {[%clk 0:01:50]} 18. Nc2 {[%clk 0:01:53]}  Be6 {[%clk 0:01:39]} 19. Rfa1 {[%clk 0:01:50]}  a6 {[%clk 0:01:38]} 20. Kf1 {[%clk 0:01:39]}  Rd7 {[%clk 0:01:28]} 21. Ke1 {[%clk 0:01:37]}  Rad8 {[%clk 0:01:28]} 22. Nb4 {[%clk 0:01:32]}  h5 {[%clk 0:01:18]} 23. Nd3 {[%clk 0:01:15]}  Nd5 {[%clk 0:01:04]} 24. Bd2 {[%clk 0:01:10]}  Nc7 {[%clk 0:01:02]} 25. b4 {[%clk 0:01:10]}  Nb5 {[%clk 0:01:01]} 26. Ra4 {[%clk 0:00:59]}  Bb3 {[%clk 0:01:00]} 27. Ra5 {[%clk 0:00:59]}  Nd4 {[%clk 0:00:40]} 28. Rc1 {[%clk 0:00:58]}  f5 {[%clk 0:00:36]} 29. Bc3 {[%clk 0:00:53]}  Nxe2 {[%clk 0:00:32]} 30. Kxe2 {[%clk 0:00:49]}  Rxd3 {[%clk 0:00:32]} 31. b5 {[%clk 0:00:36]}  axb5 {[%clk 0:00:26]} 32. Ra7 {[%clk 0:00:36]}  e4 {[%clk 0:00:22]} 33. fxe4 {[%clk 0:00:34]}  Bxc3 {[%clk 0:00:21]} 34. Rxc3 {[%clk 0:00:33]}  Rd2+ {[%clk 0:00:21]} 35. Ke1 {[%clk 0:00:27]}  Rd1+ {[%clk 0:00:17]} 36. Kf2 {[%clk 0:00:26]}  R8d2+ {[%clk 0:00:17]} 37. Ke3 {[%clk 0:00:26]}  Bc4 {[%clk 0:00:12]} 38. Bf3 {[%clk 0:00:24]}  Rxb2 {[%clk 0:00:08]} 39. Bxd1 {[%clk 0:00:23]}  fxe4 {[%clk 0:00:04]} 40. h4 {[%clk 0:00:21]}  Rg2 {[%clk 0:00:03]} 41. Kxe4 {[%clk 0:00:20]}  Bd5+ {[%clk 0:00:03]} 42. Ke5 {[%clk 0:00:20]}  b4 {[%clk 0:00:04]} 43. Rd3 {[%clk 0:00:20]}  b3 {[%clk 0:00:03]} 44. Bxb3 {[%clk 0:00:20]}  Re2+ {[%clk 0:00:03]} 45. Kf6 {[%clk 0:00:18]}  Re6+ {[%clk 0:00:03]} 46. Kg5 {[%clk 0:00:18]} 1-0

[Event "January 9 Early 2024"]
[Site "https://www.chess.com"]
[Date "2024.01.11"]
[Round "5"]
[White "Vlassov, Nikolai"]
[Black "Alekseenko, Kirill"]
[Result "0-1"]
[Board "215"]
[TimeControl "180+1"]
[WhiteFideId "4103360"]
[BlackFideId "4135539"]
[WhiteElo "2647"]
[BlackElo "2929"]
[WhiteTeam "FID"]
[BlackTeam "AUT"]
[WhiteClock "0:00:05"]
[BlackClock "0:00:05"]

1. e4 {[%clk 0:03:00]}  e5 {[%clk 0:02:59]} 2. Bc4 {[%clk 0:03:00]}  Nc6 {[%clk 0:02:59]} 3. f4 {[%clk 0:02:59]}  Nf6 {[%clk 0:02:48]} 4. Nc3 {[%clk 0:02:59]}  exf4 {[%clk 0:02:24]} 5. d4 {[%clk 0:02:52]}  Bb4 {[%clk 0:02:24]} 6. Ne2 {[%clk 0:02:52]}  d5 {[%clk 0:02:19]} 7. exd5 {[%clk 0:02:49]}  Nxd5 {[%clk 0:02:19]} 8. O-O {[%clk 0:02:49]}  Bxc3 {[%clk 0:02:13]} 9. Nxc3 {[%clk 0:02:47]}  Nce7 {[%clk 0:01:55]} 10. Bxf4 {[%clk 0:02:41]}  Nxf4 {[%clk 0:01:42]} 11. Rxf4 {[%clk 0:02:40]}  O-O {[%clk 0:01:38]} 12. Qh5 {[%clk 0:02:13]}  Ng6 {[%clk 0:01:30]} 13. Re4 {[%clk 0:01:58]}  Be6 {[%clk 0:01:30]} 14. Bxe6 {[%clk 0:01:54]}  fxe6 {[%clk 0:01:30]} 15. Rae1 {[%clk 0:01:49]}  Qf6 {[%clk 0:01:23]} 16. h3 {[%clk 0:01:41]}  Rad8 {[%clk 0:01:22]} 17. Nb5 {[%clk 0:01:23]}  Qf2+ {[%clk 0:01:19]} 18. Kh2 {[%clk 0:01:18]}  Qxc2 {[%clk 0:01:16]} 19. Rxe6 {[%clk 0:01:08]}  Nf4 {[%clk 0:01:09]} 20. Qg4 {[%clk 0:01:04]}  Nxe6 {[%clk 0:01:08]} 21. Rxe6 {[%clk 0:01:03]}  Qf5 {[%clk 0:00:46]} 22. Nxc7 {[%clk 0:00:40]}  Qxg4 {[%clk 0:00:44]} 23. hxg4 {[%clk 0:00:40]}  Rxd4 {[%clk 0:00:30]} 24. Re7 {[%clk 0:00:40]}  Rfd8 {[%clk 0:00:27]} 25. Nb5 {[%clk 0:00:29]}  R4d7 {[%clk 0:00:27]} 26. Rxd7 {[%clk 0:00:27]}  Rxd7 {[%clk 0:00:27]} 27. Nxa7 {[%clk 0:00:28]}  Rd2 {[%clk 0:00:27]} 28. Nb5 {[%clk 0:00:22]}  Rxb2 {[%clk 0:00:27]} 29. Nd6 {[%clk 0:00:22]}  Kf8 {[%clk 0:00:19]} 30. Kg3 {[%clk 0:00:21]}  Ke7 {[%clk 0:00:19]} 31. Nf5+ {[%clk 0:00:21]}  Kf6 {[%clk 0:00:19]} 32. Nd6 {[%clk 0:00:22]}  g6 {[%clk 0:00:19]} 33. a4 {[%clk 0:00:19]}  Rb3+ {[%clk 0:00:18]} 34. Kh4 {[%clk 0:00:19]}  Rb4 {[%clk 0:00:16]} 35. a5 {[%clk 0:00:18]}  h5 {[%clk 0:00:16]} 36. Kh3 {[%clk 0:00:14]}  hxg4+ {[%clk 0:00:15]} 37. Kh4 {[%clk 0:00:14]}  Ke6 {[%clk 0:00:12]} 38. Ne8 {[%clk 0:00:09]}  Ra4 {[%clk 0:00:10]} 39. Kg5 {[%clk 0:00:06]}  Rxa5+ {[%clk 0:00:10]} 40. Kxg6 {[%clk 0:00:06]}  Ra2 {[%clk 0:00:11]} 41. g3 {[%clk 0:00:06]}  Ra3 {[%clk 0:00:10]} 42. Kg5 {[%clk 0:00:06]}  Rxg3 {[%clk 0:00:10]} 43. Ng7+ {[%clk 0:00:06]}  Kd5 {[%clk 0:00:07]} 44. Kf4 {[%clk 0:00:05]}  Rg1 {[%clk 0:00:06]} 45. Nh5 {[%clk 0:00:05]}  b5 {[%clk 0:00:05]} 46. Nf6+ {[%clk 0:00:05]}  Kc4 {[%clk 0:00:06]} 47. Nxg4 {[%clk 0:00:05]}  Rxg4+ {[%clk 0:00:05]} 0-1

[Event "January 9 Early 2024"]
[Site "https://www.chess.com"]
[Date "2024.01.11"]
[Round "5"]
[White "Matveeva, Olga"]
[Black "Kokoszczynski, Jan"]
[Result "0-1"]
[Board "217"]
[TimeControl "180+1"]
[WhiteFideId "24107018"]
[BlackFideId "1174460"]
[WhiteElo "2401"]
[BlackElo "2575"]
[WhiteTeam "RUS"]
[BlackTeam "POL"]
[WhiteClock "0:00:02"]
[BlackClock "0:00:11"]

1. d4 {[%clk 0:02:59]}  Nf6 {[%clk 0:02:48]} 2. c4 {[%clk 0:02:58]}  e6 {[%clk 0:02:45]} 3. g3 {[%clk 0:02:58]}  d5 {[%clk 0:02:42]} 4. Nf3 {[%clk 0:02:58]}  Bb4+ {[%clk 0:02:40]} 5. Bd2 {[%clk 0:02:57]}  a5 {[%clk 0:02:34]} 6. Bg2 {[%clk 0:02:57]}  O-O {[%clk 0:02:32]} 7. O-O {[%clk 0:02:57]}  c5 {[%clk 0:02:33]} 8. cxd5 {[%clk 0:02:43]}  exd5 {[%clk 0:02:25]} 9. dxc5 {[%clk 0:02:41]}  Bxc5 {[%clk 0:02:22]} 10. Bg5 {[%clk 0:02:39]}  Be6 {[%clk 0:02:13]} 11. Nc3 {[%clk 0:02:37]}  Nc6 {[%clk 0:01:58]} 12. Nb5 {[%clk 0:02:28]}  h6 {[%clk 0:01:54]} 13. Bxf6 {[%clk 0:02:22]}  Qxf6 {[%clk 0:01:54]} 14. Rc1 {[%clk 0:02:11]}  Bb6 {[%clk 0:01:47]} 15. b3 {[%clk 0:02:06]}  Rfd8 {[%clk 0:01:38]} 16. e3 {[%clk 0:01:45]}  Bg4 {[%clk 0:01:22]} 17. h3 {[%clk 0:01:42]}  Bh5 {[%clk 0:01:22]} 18. g4 {[%clk 0:01:41]}  Bg6 {[%clk 0:01:22]} 19. Nfd4 {[%clk 0:01:33]}  Nxd4 {[%clk 0:01:22]} 20. Nxd4 {[%clk 0:01:32]}  Be4 {[%clk 0:01:19]} 21. Qd2 {[%clk 0:01:20]}  Bxd4 {[%clk 0:00:55]} 22. Qxd4 {[%clk 0:01:19]}  Qxd4 {[%clk 0:00:54]} 23. exd4 {[%clk 0:01:20]}  Rac8 {[%clk 0:00:53]} 24. f3 {[%clk 0:01:07]}  Bg6 {[%clk 0:00:42]} 25. Kf2 {[%clk 0:01:04]}  Kf8 {[%clk 0:00:42]} 26. Ke3 {[%clk 0:00:57]}  Ke7 {[%clk 0:00:39]} 27. Kd2 {[%clk 0:00:53]}  Kd6 {[%clk 0:00:38]} 28. a3 {[%clk 0:00:38]}  h5 {[%clk 0:00:32]} 29. f4 {[%clk 0:00:31]}  hxg4 {[%clk 0:00:30]} 30. hxg4 {[%clk 0:00:27]}  Be4 {[%clk 0:00:30]} 31. Bxe4 {[%clk 0:00:17]}  dxe4 {[%clk 0:00:31]} 32. Ke3 {[%clk 0:00:17]}  Kd5 {[%clk 0:00:31]} 33. Rh1 {[%clk 0:00:17]}  g6 {[%clk 0:00:27]} 34. f5 {[%clk 0:00:07]}  gxf5 {[%clk 0:00:24]} 35. gxf5 {[%clk 0:00:08]}  Rg8 {[%clk 0:00:24]} 36. Rxc8 {[%clk 0:00:07]}  Rxc8 {[%clk 0:00:24]} 37. Rh7 {[%clk 0:00:06]}  Rc3+ {[%clk 0:00:24]} 38. Kf4 {[%clk 0:00:07]}  Rxb3 {[%clk 0:00:13]} 39. Rxf7 {[%clk 0:00:07]}  Rf3+ {[%clk 0:00:14]} 40. Kg4 {[%clk 0:00:07]}  Rxa3 {[%clk 0:00:14]} 41. Rxb7 {[%clk 0:00:06]}  Kxd4 {[%clk 0:00:14]} 42. f6 {[%clk 0:00:05]}  Ra1 {[%clk 0:00:12]} 43. f7 {[%clk 0:00:04]}  Rf1 {[%clk 0:00:12]} 44. Ra7 {[%clk 0:00:02]}  e3 {[%clk 0:00:11]} 0-1

[Event "January 9 Early 2024"]
[Site "https://www.chess.com"]
[Date "2024.01.11"]
[Round "5"]
[White "Nikologorsky, Matfei"]
[Black "Kislinsky, Alexey"]
[Result "0-1"]
[Board "219"]
[TimeControl "180+1"]
[WhiteFideId "24102474"]
[BlackFideId "14108801"]
[WhiteElo "2466"]
[BlackElo "2740"]
[WhiteTeam "FID"]
[BlackTeam "CZE"]
[WhiteClock "0:00:04"]
[BlackClock "0:00:34"]

1. e4 {[%clk 0:03:00]}  c5 {[%clk 0:02:59]} 2. Nf3 {[%clk 0:03:00]}  Nc6 {[%clk 0:02:59]} 3. d4 {[%clk 0:03:00]}  cxd4 {[%clk 0:02:59]} 4. Nxd4 {[%clk 0:03:01]}  Nf6 {[%clk 0:03:00]} 5. Nc3 {[%clk 0:03:01]}  e5 {[%clk 0:03:00]} 6. Ndb5 {[%clk 0:03:01]}  d6 {[%clk 0:03:01]} 7. Bg5 {[%clk 0:03:01]}  a6 {[%clk 0:03:00]} 8. Bxf6 {[%clk 0:03:01]}  gxf6 {[%clk 0:03:01]} 9. Na3 {[%clk 0:03:01]}  b5 {[%clk 0:03:01]} 10. Nd5 {[%clk 0:03:01]}  f5 {[%clk 0:03:02]} 11. g3 {[%clk 0:03:00]}  fxe4 {[%clk 0:03:01]} 12. Bg2 {[%clk 0:02:57]}  Be6 {[%clk 0:03:01]} 13. Bxe4 {[%clk 0:02:43]}  Bg7 {[%clk 0:03:00]} 14. Qh5 {[%clk 0:02:41]}  Rc8 {[%clk 0:02:57]} 15. c3 {[%clk 0:02:36]}  Ne7 {[%clk 0:02:56]} 16. Rd1 {[%clk 0:02:25]}  Rc5 {[%clk 0:02:54]} 17. Nxe7 {[%clk 0:02:17]}  Qxe7 {[%clk 0:02:51]} 18. O-O {[%clk 0:02:17]}  d5 {[%clk 0:02:49]} 19. Bf5 {[%clk 0:02:17]}  Bxf5 {[%clk 0:02:43]} 20. Qxf5 {[%clk 0:02:18]}  Qe6 {[%clk 0:02:39]} 21. Qd3 {[%clk 0:01:59]}  O-O {[%clk 0:02:37]} 22. Nc2 {[%clk 0:01:57]}  Rd8 {[%clk 0:02:28]} 23. Qe3 {[%clk 0:01:47]}  d4 {[%clk 0:02:24]} 24. Qe2 {[%clk 0:01:31]}  Rdc8 {[%clk 0:02:21]} 25. Nb4 {[%clk 0:01:14]}  dxc3 {[%clk 0:02:17]} 26. bxc3 {[%clk 0:01:15]}  Rxc3 {[%clk 0:02:16]} 27. Rfe1 {[%clk 0:01:03]}  a5 {[%clk 0:02:09]} 28. Nd5 {[%clk 0:01:03]}  R3c5 {[%clk 0:02:09]} 29. Ne3 {[%clk 0:00:53]}  e4 {[%clk 0:02:01]} 30. g4 {[%clk 0:00:34]}  h5 {[%clk 0:01:53]} 31. h3 {[%clk 0:00:33]}  hxg4 {[%clk 0:01:52]} 32. hxg4 {[%clk 0:00:33]}  Bc3 {[%clk 0:01:35]} 33. Rf1 {[%clk 0:00:32]}  Qg6 {[%clk 0:01:30]} 34. Kg2 {[%clk 0:00:23]}  b4 {[%clk 0:01:25]} 35. Rh1 {[%clk 0:00:21]}  Bf6 {[%clk 0:01:04]} 36. f4 {[%clk 0:00:21]}  exf3+ {[%clk 0:01:03]} 37. Qxf3 {[%clk 0:00:21]}  Bg5 {[%clk 0:00:56]} 38. Nf5 {[%clk 0:00:20]}  Rc2+ {[%clk 0:00:56]} 39. Kf1 {[%clk 0:00:20]}  Qa6+ {[%clk 0:00:55]} 40. Kg1 {[%clk 0:00:12]}  Qb6+ {[%clk 0:00:54]} 41. Kf1 {[%clk 0:00:12]}  Qb5+ {[%clk 0:00:55]} 42. Kg1 {[%clk 0:00:12]}  Qc5+ {[%clk 0:00:54]} 43. Kf1 {[%clk 0:00:12]}  Rc1 {[%clk 0:00:50]} 44. Kg2 {[%clk 0:00:09]}  Qc2+ {[%clk 0:00:49]} 45. Kg3 {[%clk 0:00:09]}  Qc7+ {[%clk 0:00:49]} 46. Kh3 {[%clk 0:00:09]}  Rc3 {[%clk 0:00:49]} 47. Rd3 {[%clk 0:00:08]}  Rxd3 {[%clk 0:00:46]} 48. Qxd3 {[%clk 0:00:09]}  Qc3 {[%clk 0:00:47]} 49. Rd1 {[%clk 0:00:09]}  Qxd3+ {[%clk 0:00:46]} 50. Rxd3 {[%clk 0:00:09]}  Rc2 {[%clk 0:00:45]} 51. a3 {[%clk 0:00:09]}  Ra2 {[%clk 0:00:33]} 52. axb4 {[%clk 0:00:09]}  axb4 {[%clk 0:00:34]} 53. Nd4 {[%clk 0:00:07]}  Ra3 {[%clk 0:00:34]} 54. Rb3 {[%clk 0:00:02]}  Bf6 {[%clk 0:00:33]} 55. Rxa3 {[%clk 0:00:01]}  bxa3 {[%clk 0:00:33]} 56. Nc2 {[%clk 0:00:02]}  a2 {[%clk 0:00:33]} 57. g5 {[%clk 0:00:03]}  a1=Q {[%clk 0:00:34]} 58. Nxa1 {[%clk 0:00:02]}  Bxa1 {[%clk 0:00:35]} 59. Kg4 {[%clk 0:00:02]}  Kg7 {[%clk 0:00:35]} 60. Kf5 {[%clk 0:00:03]}  Bb2 {[%clk 0:00:34]} 61. Kg4 {[%clk 0:00:03]}  Kg6 {[%clk 0:00:34]} 62. Kf4 {[%clk 0:00:04]}  Bc1+ {[%clk 0:00:34]} 0-1

[Event "January 9 Early 2024"]
[Site "https://www.chess.com"]
[Date "2024.01.11"]
[Round "5"]
[White "Dyulgerov, Volen"]
[Black "Quirke, Jeffrey"]
[Result "0-1"]
[Board "222"]
[TimeControl "180+1"]
[WhiteFideId "2918978"]
[BlackFideId "2013029"]
[WhiteElo "2371"]
[BlackElo "2126"]
[WhiteTeam "BUL"]
[BlackTeam "USA"]
[WhiteClock "0:00:01"]
[BlackClock "0:00:07"]

1. e4 {[%clk 0:03:00]}  e6 {[%clk 0:02:59]} 2. d4 {[%clk 0:03:00]}  d5 {[%clk 0:03:00]} 3. exd5 {[%clk 0:03:00]}  exd5 {[%clk 0:03:00]} 4. Nf3 {[%clk 0:03:01]}  Nf6 {[%clk 0:02:59]} 5. c4 {[%clk 0:03:02]}  c6 {[%clk 0:02:54]} 6. Nc3 {[%clk 0:03:02]}  Be7 {[%clk 0:02:53]} 7. Bd3 {[%clk 0:03:02]}  O-O {[%clk 0:02:54]} 8. O-O {[%clk 0:03:02]}  dxc4 {[%clk 0:02:54]} 9. Bxc4 {[%clk 0:03:03]}  Nbd7 {[%clk 0:02:55]} 10. Re1 {[%clk 0:03:02]}  Nb6 {[%clk 0:02:55]} 11. Bd3 {[%clk 0:03:02]}  Bg4 {[%clk 0:02:49]} 12. h3 {[%clk 0:02:52]}  Bh5 {[%clk 0:02:45]} 13. Bf4 {[%clk 0:02:20]}  Nbd5 {[%clk 0:02:40]} 14. Be5 {[%clk 0:02:20]}  Bd6 {[%clk 0:02:25]} 15. Ne4 {[%clk 0:02:00]}  Nxe4 {[%clk 0:02:10]} 16. Rxe4 {[%clk 0:01:58]}  Bg6 {[%clk 0:02:07]} 17. Rg4 {[%clk 0:01:51]}  Bxe5 {[%clk 0:01:50]} 18. Bxg6 {[%clk 0:01:50]}  Bh2+ {[%clk 0:01:44]} 19. Kxh2 {[%clk 0:01:49]}  hxg6 {[%clk 0:01:45]} 20. Ne5 {[%clk 0:01:36]}  Nf6 {[%clk 0:01:34]} 21. Rh4 {[%clk 0:01:27]}  Qd5 {[%clk 0:01:32]} 22. Qd3 {[%clk 0:00:48]}  Rad8 {[%clk 0:01:31]} 23. Rd1 {[%clk 0:00:48]}  c5 {[%clk 0:01:21]} 24. Qg3 {[%clk 0:00:20]}  Qxa2 {[%clk 0:00:48]} 25. Rf4 {[%clk 0:00:11]}  Nh5 {[%clk 0:00:43]} 26. Nxg6 {[%clk 0:00:08]}  fxg6 {[%clk 0:00:24]} 27. Rxf8+ {[%clk 0:00:05]}  Rxf8 {[%clk 0:00:24]} 28. Qxg6 {[%clk 0:00:05]}  Qf7 {[%clk 0:00:25]} 29. Qxf7+ {[%clk 0:00:03]}  Rxf7 {[%clk 0:00:24]} 30. dxc5 {[%clk 0:00:04]}  Nf6 {[%clk 0:00:22]} 31. Rd8+ {[%clk 0:00:03]}  Kh7 {[%clk 0:00:23]} 32. Ra8 {[%clk 0:00:04]}  a6 {[%clk 0:00:22]} 33. Ra7 {[%clk 0:00:04]}  Rc7 {[%clk 0:00:21]} 34. c6 {[%clk 0:00:03]}  Rxc6 {[%clk 0:00:21]} 35. Rxb7 {[%clk 0:00:04]}  Nd5 {[%clk 0:00:18]} 36. g4 {[%clk 0:00:01]}  Kg6 {[%clk 0:00:16]} 37. Kg3 {[%clk 0:00:01]}  Rb6 {[%clk 0:00:14]} 38. Rxb6+ {[%clk 0:00:01]}  Nxb6 {[%clk 0:00:13]} 39. f4 {[%clk 0:00:02]}  a5 {[%clk 0:00:13]} 40. h4 {[%clk 0:00:02]}  a4 {[%clk 0:00:13]} 41. f5+ {[%clk 0:00:02]}  Kf6 {[%clk 0:00:13]} 42. Kf4 {[%clk 0:00:03]}  Nc4 {[%clk 0:00:13]} 43. g5+ {[%clk 0:00:03]}  Kf7 {[%clk 0:00:14]} 44. h5 {[%clk 0:00:02]}  Nxb2 {[%clk 0:00:13]} 45. g6+ {[%clk 0:00:02]}  Kg8 {[%clk 0:00:12]} 46. Kg5 {[%clk 0:00:03]}  a3 {[%clk 0:00:12]} 47. h6 {[%clk 0:00:02]}  gxh6+ {[%clk 0:00:12]} 48. Kxh6 {[%clk 0:00:03]}  Nc4 {[%clk 0:00:06]} 49. f6 {[%clk 0:00:03]}  Ne5 {[%clk 0:00:06]} 50. g7 {[%clk 0:00:01]}  Nf7+ {[%clk 0:00:06]} 51. Kg6 {[%clk 0:00:01]}  a2 {[%clk 0:00:07]} 0-1

[Event "January 9 Early 2024"]
[Site "https://www.chess.com"]
[Date "2024.01.11"]
[Round "5"]
[White "Gubajdullin, Alexei"]
[Black "Kazakouski, Valery"]
[Result "1-0"]
[Board "223"]
[TimeControl "180+1"]
[WhiteFideId "4141202"]
[BlackFideId "13507443"]
[WhiteElo "2651"]
[BlackElo "2825"]
[WhiteTeam "RUS"]
[BlackTeam "LTU"]
[WhiteClock "0:00:18"]
[BlackClock "0:00:01"]

1. d4 {[%clk 0:02:44]}  Nf6 {[%clk 0:02:59]} 2. Nf3 {[%clk 0:02:43]}  e6 {[%clk 0:02:59]} 3. Bf4 {[%clk 0:02:44]}  c5 {[%clk 0:02:59]} 4. e3 {[%clk 0:02:44]}  b6 {[%clk 0:02:57]} 5. Nbd2 {[%clk 0:02:44]}  cxd4 {[%clk 0:02:56]} 6. exd4 {[%clk 0:02:44]}  Be7 {[%clk 0:02:57]} 7. h3 {[%clk 0:02:44]}  O-O {[%clk 0:02:57]} 8. c3 {[%clk 0:02:44]}  d6 {[%clk 0:02:57]} 9. Be2 {[%clk 0:02:43]}  Ba6 {[%clk 0:02:57]} 10. Bxa6 {[%clk 0:02:41]}  Nxa6 {[%clk 0:02:57]} 11. O-O {[%clk 0:02:41]}  Nc7 {[%clk 0:02:58]} 12. a4 {[%clk 0:02:41]}  h6 {[%clk 0:02:58]} 13. Qe2 {[%clk 0:02:39]}  Qd7 {[%clk 0:02:58]} 14. Nc4 {[%clk 0:02:36]}  Qc6 {[%clk 0:02:58]} 15. Nfd2 {[%clk 0:02:30]}  a6 {[%clk 0:02:55]} 16. a5 {[%clk 0:02:25]}  b5 {[%clk 0:02:55]} 17. Nb6 {[%clk 0:02:25]}  Ncd5 {[%clk 0:02:47]} 18. Nxd5 {[%clk 0:02:07]}  Nxd5 {[%clk 0:02:48]} 19. Bg3 {[%clk 0:02:06]}  Rfe8 {[%clk 0:02:48]} 20. Rfc1 {[%clk 0:02:03]}  Rac8 {[%clk 0:02:48]} 21. Qf3 {[%clk 0:01:52]}  Nf6 {[%clk 0:02:40]} 22. Qxc6 {[%clk 0:01:39]}  Rxc6 {[%clk 0:02:41]} 23. b3 {[%clk 0:01:39]}  d5 {[%clk 0:02:39]} 24. c4 {[%clk 0:01:31]}  bxc4 {[%clk 0:02:02]} 25. bxc4 {[%clk 0:01:30]}  dxc4 {[%clk 0:02:03]} 26. Rxc4 {[%clk 0:01:29]}  Rxc4 {[%clk 0:01:53]} 27. Nxc4 {[%clk 0:01:29]}  Rc8 {[%clk 0:01:51]} 28. Nb6 {[%clk 0:01:27]}  Rc2 {[%clk 0:01:49]} 29. f3 {[%clk 0:01:20]}  Nh5 {[%clk 0:01:42]} 30. Be5 {[%clk 0:01:16]}  f6 {[%clk 0:01:07]} 31. Bb8 {[%clk 0:01:07]}  g5 {[%clk 0:01:06]} 32. g4 {[%clk 0:01:00]}  Nf4 {[%clk 0:00:54]} 33. Bxf4 {[%clk 0:00:59]}  gxf4 {[%clk 0:00:54]} 34. d5 {[%clk 0:00:56]}  e5 {[%clk 0:00:52]} 35. Kh1 {[%clk 0:00:50]}  Kf7 {[%clk 0:00:51]} 36. Ra4 {[%clk 0:00:44]}  Rc5 {[%clk 0:00:36]} 37. Rc4 {[%clk 0:00:40]}  Rxc4 {[%clk 0:00:09]} 38. Nxc4 {[%clk 0:00:40]}  Bb4 {[%clk 0:00:09]} 39. Kg2 {[%clk 0:00:39]}  Ke7 {[%clk 0:00:05]} 40. Kf1 {[%clk 0:00:39]}  Bc5 {[%clk 0:00:04]} 41. Ke2 {[%clk 0:00:39]}  Bb4 {[%clk 0:00:03]} 42. Kd3 {[%clk 0:00:39]}  Be1 {[%clk 0:00:04]} 43. Ke4 {[%clk 0:00:39]}  Bb4 {[%clk 0:00:03]} 44. Kf5 {[%clk 0:00:38]}  Kf7 {[%clk 0:00:03]} 45. h4 {[%clk 0:00:35]}  Be1 {[%clk 0:00:02]} 46. h5 {[%clk 0:00:33]}  Bb4 {[%clk 0:00:02]} 47. d6 {[%clk 0:00:33]}  Bc5 {[%clk 0:00:01]} 48. d7 {[%clk 0:00:25]}  Ke7 {[%clk 0:00:01]} 49. d8=Q+ {[%clk 0:00:22]}  Kxd8 {[%clk 0:00:01]} 50. Kxf6 {[%clk 0:00:23]}  e4 {[%clk 0:00:02]} 51. fxe4 {[%clk 0:00:23]}  f3 {[%clk 0:00:02]} 52. Kf7 {[%clk 0:00:18]}  f2 {[%clk 0:00:01]} 53. Nd2 {[%clk 0:00:18]} 1-0